Cogmind - Beta 13 @@@ ROGUE MODE // 2024.04.04 @ 11:32:54 Player: CogEmotions! Result: Destroyed by D-53 Grenadier with Mini Grenade Launcher Performance ------------- Evolutions (0) 0 Regions Visited (2) 400 Robots Destroyed (10) 50 Value Destroyed (278) 278 Prototype IDs (0) 0 Alien Tech Used (0) 0 Bonus (0) 0 TOTAL SCORE: 728 Bonus ------- None Cogmind --------- Core Integrity 0/250 Matter 243/300 Energy 52/100 System Corruption 0% Temperature Cool (8) Movement Core (450) Ox8 Location -10/Mines Parts ------- > --- POWER (1) -------- (None) > --- PROPULSION (2) --- (None) > --- UTILITY (2) ------ Large Storage Unit Terrain Scanner > --- WEAPON (2) ------- Small Laser Beam Cannon > --- INVENTORY (15) --- Ion Engine Light Ion Engine Light Nuclear Core Aluminum Leg Aluminum Leg Medium Matter Pod (3) Signal Interpreter Small Laser Mining Laser Peak State ------------ > --- POWER ------------ Ion Engine > --- PROPULSION ------- Aluminum Leg Aluminum Leg > --- UTILITY ---------- Medium Storage Unit Large Storage Unit > --- WEAPON ----------- Small Laser Small Laser > --- INVENTORY -------- Ion Engine Light Ion Engine Light Nuclear Core Aluminum Leg Aluminum Leg Small Storage Unit Medium Matter Pod Signal Interpreter Grenade Launcher [Rating: 8] Favorites ----------- Power Ion Engine Engine Ion Engine Propulsion Aluminum Leg Leg Aluminum Leg Utility Medium Storage Unit Device Terrain Scanner Storage Medium Storage Unit Weapon Small Laser Energy Gun Small Laser Energy Cannon Beam Cannon Ballistic Gun Assault Rifle Launcher Grenade Launcher Build | -11 -10 -10 ------- Run | Yrd Mat Min Slots Evolved . | . . . Power . | . . . Propulsion . | . . . Utility . | . . . Weapon . | . . . Parts Attached 17 | 6 7 4 Power 1 | 1 . . Engine 1 | 1 . . Core . | . . . Reactor . | . . . Propulsion 4 | 2 2 . Treads . | . . . Leg 4 | 2 2 . Wheel . | . . . Hover . | . . . Flight . | . . . Utility 4 | 1 3 . Device 1 | . 1 . Storage 3 | 1 2 . Processor . | . . . Hackware . | . . . Protection . | . . . Artifact . | . . . Weapon 8 | 2 2 4 Energy Gun 3 | . 2 1 Energy Cannon 1 | . . 1 Ballistic Gun 2 | 2 . . Ballistic Cannon . | . . . Launcher 2 | . . 2 Special Weapon . | . . . Impact Weapon . | . . . Slashing Weapon . | . . . Piercing Weapon . | . . . Special Melee Weapon . | . . . Unidentified Prototypes . | . . . Parts Lost 8 | . 3 5 Power 1 | . . 1 Propulsion 3 | . 1 2 Utility . | . . . Weapon 4 | . 2 2 Highest Loss Streak 5 | . 3 5 To Critical Strikes . | . . . Average Slot Usage (%) 85 | . 82 97 Engine 13 | . 14 13 Leg 27 | . 27 26 Device 3 | . . 14 Storage 14 | . 14 14 Energy Gun 18 | . 15 26 Ballistic Gun 7 | . 9 . Naked Turns . | . . . Heaviest Build 28 | 14 28 28 Greatest Support 20 | 20 20 20 Greatest Overweight (x) 3 | 3 1 1 Average Overweight (x) . | . . 1 Largest Inventory Capacity 15 | 8 15 15 Average Capacity 11 | 7 10 15 Most Carried 11 | 5 10 11 Average Carried 7 | 2 6 10 Final Capacity 15 | 8 15 15 Final Carried 10 | 1 10 9 Class Distribution -------------------- 57% | Scavenger-Mutant 42% | Mutant Dominant Class ---------------- Scavenger-Mutant | -10/Materials Scavenger-Mutant | -10/Mines Resources | -11 -10 -10 ----------- Run | Yrd Mat Min Matter Collected 427 | 217 187 23 Remotely . | . . . Salvage Created 468 | . 382 86 Parts 20 | . 18 2 Haulers Intercepted . | . . . Recyclers Shooed . | . . . Parts Field Recycled . | . . . Retrieved Matter . | . . . Parts Self-Destructed . | . . . Prevented . | . . . Kills | -11 -10 -10 ------- Run | Yrd Mat Min Combat Hostiles Destroyed 7 | . 7 . Guns 7 | . 7 . Classes Destroyed 3 | . 2 1 Builder 1 | . . 1 Recycler 2 | . 1 1 Grunt 7 | . 7 . Best Kill Streak 2 | . 2 2 Combat Bots Only 2 | . 2 . Max Kills in Single Turn 1 | . 1 1 Gunslinging . | . . . Exploded . | . . . Melee . | . . . Uniques/NPCs Destroyed . | . . . Combat | -11 -10 -10 -------- Run | Yrd Mat Min Hostile Shots Fired 71 | . 57 14 Missed 12 | . 11 1 Damage Taken 1077 | . 611 466 Core 254 | . 124 130 Absorbed by Shields . | . . . Core Remaining (%) 100 | 100 . . Volleys Fired 53 | . 50 3 Largest 2 | . 2 2 Hottest 100 | . 80 100 Shots Fired 72 | . 66 6 Gun 67 | . 66 1 Cannon 1 | . . 1 Launcher 4 | . . 4 Special . | . . . Kinetic 39 | . 39 . Thermal 29 | . 27 2 Explosive 4 | . . 4 Electromagnetic . | . . . Robot Hit Streak 11 | . 11 5 Robot Miss Streak 3 | . 3 1 Penetration Max . | . . . Secondary Targets . | . . . Shots Hit Robots 56 | . 51 5 Core Hits 33 | . 18 15 Critical Kills . | . . . Critical Parts Destroyed . | . . . Critical Strikes . | . . . Melee Attacks . | . . . Impact . | . . . Slashing . | . . . Piercing . | . . . Sneak Attacks . | . . . Combat Hostiles . | . . . Follow-up Attacks . | . . . Damage Inflicted 796 | . 604 192 Guns 609 | . 598 11 Cannons 18 | . . 18 Explosions 163 | . . 163 Melee . | . . . Ramming 6 | . 6 . Kinetic 373 | . 373 . Thermal 254 | . 225 29 Explosive 163 | . . 163 Electromagnetic . | . . . Impact . | . . . Slashing . | . . . Piercing . | . . . Highest Corruption . | . . . Average Corruption . | . . . Corruption Purged . | . . . Corruption Blocked . | . . . Overload Shots . | . . . Overflow Damage . | . . . Projectiles . | . . . Explosions . | . . . Melee . | . . . Knockbacks . | . . . Impact . | . . . Kinetic . | . . . Secondary . | . . . Self-Inflicted Damage 29 | . . 29 Shots 1 | . . 1 Rammed . | . . . Targets Rammed 2 | . 2 . Kicked 2 | . 2 . Crushed . | . . . Highest Temperature 63 | . 63 8 Average Temperature 28 | . 29 8 Received Heat Transfer 333 | . 333 . Siege Activations . | . . . Robots Corrupted . | . . . Combat Hostiles . | . . . Parts Fried . | . . . Impact Corruptions . | . . . Robots Melted . | . . . Combat Hostiles . | . . . Parts Melted 1 | . 1 . Heat Transferred 587 | . 525 62 Parts Sabotaged . | . . . Parts Stolen . | . . . Parts Stripped . | . . . Power Chain Reactions . | . . . Alert | -11 -10 -10 ------- Run | Yrd Mat Min Peak Influence 205 | . 205 8 Initial 1 | . . 1 Average 61 | . 84 1 Maximum Alert Level 1 | . 1 . Low Security (%) 90 | 100 86 100 Level 1 9 | . 13 . Level 2 . | . . . Level 3 . | . . . Level 4 . | . . . Level 5 . | . . . High Security . | . . . Max Security . | . . . Squads Dispatched 2 | . 2 . Investigation . | . . . Extermination . | . . . Reinforcement 2 | . 2 . Assault . | . . . Garrison . | . . . Intercept . | . . . Searches Triggered . | . . . Construction Impeded . | . . . Haulers Reinforced . | . . . Active Scanning Responses . | . . . Cargo Convoy Interrupts . | . . . Stealth | -11 -10 -10 --------- Run | Yrd Mat Min Distress Signals 1 | . 1 . Communications Jammed . | . . . Distress Signals . | . . . Times Spotted 17 | . 15 2 Peak Tracking Total 2 | . 2 2 Tactical Retreats . | . . . Traps | -11 -10 -10 ------- Run | Yrd Mat Min Traps Triggered . | . . . Indirectly . | . . . Trap Hack Attempts . | . . . Triggered . | . . . Disarmed . | . . . Reprogrammed . | . . . Reused . | . . . Traps Extracted . | . . . Installed . | . . . Triggered . | . . . Machines | -11 -10 -10 ---------- Run | Yrd Mat Min Machines Disabled 1 | . 1 . Max in Single Turn 1 | . 1 . Machines Repaired . | . . . Machines Dismantled . | . . . Machines Sabotaged . | . . . Overloaded Fab Kills . | . . . Hacking | -11 -10 -10 --------- Run | Yrd Mat Min Machines Accessed . | . . . Terminals . | . . . Fabricators . | . . . Repair Stations . | . . . Recycling Units . | . . . Scanalyzers . | . . . Garrison Access . | . . . Total Hacks . | . . . Successful . | . . . Failed . | . . . Catastrophic . | . . . Database Lockouts . | . . . Manual . | . . . Terminals . | . . . Fabricators . | . . . Repair Stations . | . . . Recycling Units . | . . . Scanalyzers . | . . . Garrison Access . | . . . Terminal Hacks . | . . . Fabricator Hacks . | . . . Repair Station Hacks . | . . . Recycling Unit Hacks . | . . . Scanalyzer . | . . . Garrison Access Hacks . | . . . Unauthorized Hacks . | . . . Terminals . | . . . Fabricators . | . . . Repair Stations . | . . . Recycling Units . | . . . Scanalyzers . | . . . Garrison Access . | . . . Data Cores Recovered . | . . . Used . | . . . Hacking Detections . | . . . Full Trace Events . | . . . Feedback Events . | . . . Feedback Blocked . | . . . Robot Schematics Acquired . | . . . Robots Built . | . . . Authchips . | . . . Time . | . . . Total Robot Build Rating . | . . . Part Schematics Acquired . | . . . Parts Built . | . . . Authchips . | . . . Time . | . . . Total Part Build Rating . | . . . Parts Repaired . | . . . Time . | . . . Parts Recycled . | . . . Recycled Matter . | . . . Retrieved Matter . | . . . Retrieved Components . | . . . Parts Scanalyzed . | . . . Part Schematics Acquired . | . . . Parts Damaged . | . . . Bothacking | -11 -10 -10 ------------ Run | Yrd Mat Min Used RIF Installer . | . . . Robots Hacked . | . . . Non-combat . | . . . Combat . | . . . Robot Hacks Applied . | . . . Relay Couplers Released . | . . . Fabnet Peak Effective % . | . . . Robots Rewired . | . . . Allies Hacked . | . . . Hacks Repelled . | . . . Allies | -11 -10 -10 -------- Run | Yrd Mat Min Total Allies . | . . . Largest Group . | . . . Highest-Rated Group . | . . . Highest-Rated Ally . | . . . Total Orders . | . . . Ally Attacks . | . . . Total Damage . | . . . Kills . | . . . Allies Corrupted . | . . . Allies Melted . | . . . Intel | -11 -10 -10 ------- Run | Yrd Mat Min Robot Analysis Total . | . . . Derelict Logs Recovered . | . . . Drone Launches . | . . . Drone Recoveries . | . . . Exploration | -11 -10 -10 ------------- Run | Yrd Mat Min Turns Passed 820 | 58 597 165 Spaces Moved 423 | 44 310 69 Core 23 | 23 . . Treads . | . . . Legs 400 | 21 310 69 Wheels . | . . . Hover . | . . . Flight . | . . . Fastest Speed 50 | 50 120 190 Average Speed 137 | 107 130 190 Slowest Speed 200 | 200 190 190 Overloaded Moves . | . . . Propulsion Burnouts . | . . . Robots Hopped . | . . . Cave-ins Triggered . | . . . Exploration Rate (%) 25 | 4 43 29 Regions Visited 2 Branch Regions 1 Pre-discovered Areas . | . . . Known Exits Taken . | . . . Unknown Exits Taken 2 | 1 1 . Scrap Searched 1 | . . 1 Spaces Dug . | . . . Terrain Destroyed 18 | . . 18 Melee . | . . . Projectile . | . . . AOE 18 | . . 18 Terrain Rammed . | . . . Walls Destroyed . | . . . Machines Disabled . | . . . Actions | -11 -10 -10 --------- Run | Yrd Mat Min Total 590 | 54 439 97 Wait 72 | . 52 20 Move 421 | 43 309 69 Hop . | . . . Pick Up 22 | 5 16 1 Fast Attach 2 | 2 . . Attach 12 | 4 6 2 Detach . | . . . Swap 3 | . 1 2 Drop 3 | . 3 . Fire 53 | . 50 3 Melee . | . . . Ram . | . . . Kick 2 | . 2 . Crush . | . . . Escape Stasis . | . . . Rewire . | . . . Trap . | . . . Miscellaneous . | . . . Route ------- -11/Scrapyard -10/Materials (discovered 2 exits: [*Mat] / [*Min]) -10/Mines History --------- Turn | Location | Event 21 | -11/Scrapyard | Discovered new exit (range 15) 59 | -11/Scrapyard | Entered Materials 303 | -10/Materials | Lost 3 parts (1n2w) 324 | -10/Materials | Build established: Mutant 417 | -10/Materials | Discovered new exit (range 15) 553 | -10/Materials | Discovered new exit (range 11) 647 | -10/Materials | Build established: Scavenger-Mutant 656 | -10/Materials | Entered Mines 664 | -10/Mines | Met a Derelict bent on vengeance 679 | -10/Mines | Received a Rocket Launcher from a helpful Derelict 790 | -10/Mines | Assembled infested the area 812 | -10/Mines | Core integrity fell below 50% 820 | -10/Mines | Core integrity fell below 20% 821 | -10/Mines | Destroyed by D-53 Grenadier with Mini Grenade Launcher Last Messages --------------- Acquired Rocket Launcher. AJ-8BE(g): "UNAWARE KILLED MY BEST FRIEND! VENGEANCE!" AJ-8BE(g): "I WILL HAVE VENGEANCE!" ALERT: Infestation in the mines, dispatching Demolisher response squad. C-30 ARC bursts open, deploying its payload. D-53 Grenadier unfolds itself. The unstable cave ceiling collapses. Ion Engine destroyed. The unstable cave ceiling collapses. R-06 Scavenger destroyed. The unstable cave ceiling collapses. U-05 Engineer lays Concrete. U-05 Engineer destroyed. Aluminum Leg destroyed. Rocket Launcher destroyed. Grenade Launcher destroyed. Aluminum Leg destroyed. The unstable cave ceiling collapses. Map ----- +----------------------------------------------------+ | ???????????????????????????????????????????? | | ???????????????????????????????????????????? | | ???????????????????????????????????????????? | | ???????????????????????????????????????????? | | ???????????????????????????????????????????? | | ???????????????????????????????????????????? | | ???????????????????????????????????????????? | | ???????????????????????????????????????????? | | ???????????????????????????????????????????? | | ???????????????????????????????????????????? | | ?????????????????????????? ??????????????? | | ?????????????????????#??## " ????????????? | | ?????????#????#????????# % ????????????? | | ????????## ??#????????# ?????????????? | | ????????# ?#???????# ??????????????? | | ????????# ???????# ???????????????? | | ????????# #???### ! ????????????????? | | ?????????# #?## % ?????????????????? | | ??????????# ## ??????????????????? | | ???????????# % ##?????????????????? | | ????????????# d ##????????????????? | | ????????????# ##???????????????? | | ??????????### d #????????????????? | | ??????????# ##????????????????? | | ??????????## #????????????? ??? | | ???????????????# #@ #????????? ??? ??? | | ?????????????# ###??#??? ?? ??? | | ?????????#???# ##### #??# #?? | | ?????????????# # #???# #?? | | ?????????????#?# g #????# ##? | | ???????????????## ## #?#??# #?? | | ????????????????## ##??? #????# #?? | | ?????????????????# ##??????#????# #?? | | ?????????????????# #??#? ???????# #?? | | ?????????????? ??# # ####?????????# #?? | | ?????????????????### ##???????##?# #?? | | ???????????????????# ##?????????# #?? | | ???????????????????## #??#??##### #?? | | ????????????????????## #?????# ### | | ?????????????????????## ##????# | | ?????????????????????## ###### #### | | ?????????????????????# #??## | | ?????????????????????# #########?#?## | | ????????????????#????## ####????????????### | | ??????????????????????###??????????????????? | | ????????????????????????#????????????????#?? | | | | | | | | | +----------------------------------------------------+ Best States ------------- Heat Dissipation 25 Energy Generation 10 Energy Capacity 250 Matter Stores 300 Matter Capacity 300 Sight Range 16 Terrain Scan Range 14 Terrain Scan Density 10 Evasion (%) 55 Item Schematics ----------------- None Robot Schematics ------------------ None Fabricated ------------ Nothing Alien Tech Used ----------------- None Achievements -------------- None Challenges ------------ None Game ------ Seed NavigationPlatingFalx Manual? 0 Play Time 00:11:08 Cumulative 10.2 hours Start 2024.04.04 @ 11:05:27 End 2024.04.04 @ 11:32:54 Sessions 1 Manual Loads 0 Difficulty Rogue Special Mode None Game No. 24 Rogue 24 Adventurer 0 Explorer 0 Win Type - Total 0 Types 0/0/0/0/0/0/0/0/0 Lore% 6 Gallery% 17 Achievement% 13 Wizard Run 0 Options --------- Layout 1 ASCII 0 Keyboard 0 Movement Mouse Keybinds 0 Fullscreen 2 Font 24/Smallcaps Map View 50x35 Zoom Use 0% Tactical HUD 0 Map Filters NONE Filters NONE Steam 1 RUN: f0a20f52-60fa-4264-be1b-e46c1ef5e49f